fUSD/lending_fUSD_20260517
["ID","MTS","AMOUNT","RATE_DAILY","PERIOD"]
[422473165,1778973045000,-450.0,0.00035915,2]
[422473163,1778973045000,-450.0,0.00035915,2]
[422473159,1778973045000,-400.0,0.00035867,2]
[422473164,1778973045000,-450.0,0.00035915,2]
[422473162,1778973045000,-450.0,0.00035915,2]
[422473168,1778973045000,-450.0,0.00035915,2]
[422473135,1778973045000,-153.0,0.00035184,30]
[422473170,1778973045000,-450.0,0.00035915,2]
[422473177,1778973045000,-763.0,0.00036164,2]
[422473174,1778973045000,-12422.14074617,0.00036,2]
[422473172,1778973045000,-1000.0,0.00035935,72]
[422473171,1778973045000,-166.0,0.00035915,2]
[422473173,1778973045000,-25074.59174953,0.00036,2]
[422473175,1778973045000,-1199.0,0.00036164,2]
[422473176,1778973045000,-1184.0,0.00036164,2]
[422473179,1778973045000,-240.0,0.00036184,30]
[422473178,1778973045000,-153.0,0.00036184,30]
[422473181,1778973045000,-151.0,0.00036184,30]
[422473160,1778973045000,-322.0,0.00035867,2]
[422473169,1778973045000,-450.0,0.00035915,2]
[422473158,1778973045000,-400.0,0.00035867,2]
[422473139,1778973045000,-602.0,0.00035184,30]
[422473156,1778973045000,-400.0,0.00035867,2]
[422473133,1778973045000,-1230.13695452,0.00035025,7]
[422473134,1778973045000,-189.56,0.00035131,2]
[422473136,1778973045000,-240.0,0.00035184,30]
[422473138,1778973045000,-151.0,0.00035184,30]
[422473137,1778973045000,-196.0,0.00035184,30]
[422473142,1778973045000,-1000.0,0.00035197,26]
[422473143,1778973045000,-1500.0,0.000352,7]
[422473141,1778973045000,-154.0,0.00035184,30]
[422473145,1778973045000,-361.9449132,0.00035336,2]
[422473146,1778973045000,-500.0,0.00035562,2]
[422473157,1778973045000,-400.0,0.00035867,2]
[422473140,1778973045000,-157.0,0.00035184,30]
[422473147,1778973045000,-170786.81018297,0.0003561,2]
[422473149,1778973045000,-158.71932017,0.00035616,60]
[422473148,1778973045000,-4509.00530693,0.0003561,2]
[422473150,1778973045000,-159.28,0.00035616,30]
[422473182,1778973045000,-602.0,0.00036184,30]
[422473151,1778973045000,-1000.0,0.00035648,100]
[422473153,1778973045000,-400.0,0.00035867,2]
[422473152,1778973045000,-400.0,0.00035867,2]
[422473154,1778973045000,-400.0,0.00035867,2]
[422473155,1778973045000,-400.0,0.00035867,2]
[422473144,1778973045000,-160.0,0.000352,26]
[422473180,1778973045000,-196.0,0.00036184,30]
[422473199,1778973045000,-310.99730567,0.0003633,2]
[422473183,1778973045000,-157.0,0.00036184,30]
[422473215,1778973045000,-300.0,0.00036367,2]
[422473212,1778973045000,-300.0,0.0003633,2]
[422473213,1778973045000,-484.23291958,0.0003633,2]
[422473216,1778973045000,-300.0,0.00036367,2]
[422473220,1778973045000,-300.0,0.00036367,2]
[422473219,1778973045000,-300.0,0.00036367,2]
[422473218,1778973045000,-300.0,0.00036367,2]
[422473221,1778973045000,-300.0,0.00036367,2]
[422473222,1778973045000,-300.0,0.00036367,2]
[422473227,1778973045000,-300.0,0.00036367,2]
[422473214,1778973045000,-300.0,0.00036367,2]
[422473225,1778973045000,-300.0,0.00036367,2]
[422473224,1778973045000,-300.0,0.00036367,2]
[422473226,1778973045000,-300.0,0.00036367,2]
[422473228,1778973045000,-300.0,0.00036367,2]
[422473229,1778973045000,-300.0,0.00036367,2]
[422473230,1778973045000,-300.0,0.00036367,2]
[422473232,1778973045000,-492.84022017,0.00036367,2]
[422473231,1778973045000,-300.0,0.00036367,2]
[422473234,1778973045000,-300.0,0.00036367,2]
[422473233,1778973045000,-300.0,0.00036367,2]
[422473184,1778973045000,-154.0,0.00036184,30]
[422473223,1778973045000,-300.0,0.00036367,2]
[422473211,1778973045000,-300.0,0.0003633,2]
[422473217,1778973045000,-1095.07136273,0.00036367,2]
[422473208,1778973045000,-300.0,0.0003633,2]
[422473210,1778973045000,-300.0,0.0003633,2]
[422473186,1778973045000,-1000.0,0.00036197,31]
[422473187,1778973045000,-160.0,0.000362,31]
[422473188,1778973045000,-1000.0,0.00036293,76]
[422473190,1778973045000,-1147.52562491,0.0003633,2]
[422473189,1778973045000,-375.47162123,0.0003633,2]
[422473191,1778973045000,-309.68315104,0.0003633,2]
[422473193,1778973045000,-864.71533708,0.0003633,2]
[422473194,1778973045000,-300.0,0.0003633,2]
[422473192,1778973045000,-300.0,0.0003633,2]
[422473195,1778973045000,-1791.04776837,0.0003633,2]
[422473185,1778973045000,-1000.0,0.00036195,34]
[422473197,1778973045000,-300.0,0.0003633,2]
[422473198,1778973045000,-300.0,0.0003633,2]
[422473209,1778973045000,-300.0,0.0003633,2]
[422473206,1778973045000,-452.04263183,0.0003633,2]
[422473200,1778973045000,-300.0,0.0003633,2]
[422473205,1778973045000,-300.0,0.0003633,2]
[422473207,1778973045000,-300.0,0.0003633,2]
[422473203,1778973045000,-300.0,0.0003633,2]
[422473204,1778973045000,-577.38521552,0.0003633,2]
[422473202,1778973045000,-463.98731895,0.0003633,2]
[422473196,1778973045000,-300.0,0.0003633,2]
[422473201,1778973045000,-300.0,0.0003633,2]
[422473266,1778973046000,-300.0,0.00036367,2]
[422473257,1778973046000,-300.0,0.00036367,2]
[422473260,1778973046000,-300.0,0.00036367,2]
[422473261,1778973046000,-300.0,0.00036367,2]
[422473263,1778973046000,-527.04605611,0.00036367,2]
[422473264,1778973046000,-300.0,0.00036367,2]
[422473267,1778973046000,-1147.52562491,0.00036367,2]
[422473265,1778973046000,-300.0,0.00036367,2]
[422473274,1778973046000,-300.0,0.00036367,2]
[422473269,1778973046000,-300.0,0.00036367,2]
[422473271,1778973046000,-300.0,0.00036367,2]
[422473273,1778973046000,-300.0,0.00036367,2]
[422473272,1778973046000,-1791.04776837,0.00036367,2]
[422473259,1778973046000,-1912.98732614,0.00036367,2]
[422473276,1778973046000,-310.99730567,0.00036367,2]
[422473275,1778973046000,-300.0,0.00036367,2]
[422473277,1778973046000,-300.0,0.00036367,2]
[422473279,1778973046000,-463.98731895,0.00036367,2]
[422473268,1778973046000,-309.68315104,0.00036367,2]
[422473258,1778973046000,-949.2762563,0.00036367,2]
[422473252,1778973046000,-300.66230964,0.00036367,2]
[422473255,1778973046000,-300.0,0.00036367,2]
[422473235,1778973046000,-300.0,0.00036367,2]
[422473236,1778973046000,-300.0,0.00036367,2]
[422473238,1778973046000,-300.0,0.00036367,2]
[422473239,1778973046000,-300.0,0.00036367,2]
[422473237,1778973046000,-604.63991303,0.00036367,2]
[422473240,1778973046000,-300.0,0.00036367,2]
[422473241,1778973046000,-478.02559862,0.00036367,2]
[422473242,1778973046000,-527.89629163,0.00036367,2]
[422473245,1778973046000,-893.66998664,0.00036367,2]
[422473256,1778973046000,-300.0,0.00036367,2]
[422473244,1778973046000,-1067.23644452,0.00036367,2]
[422473243,1778973046000,-300.0,0.00036367,2]
[422473246,1778973046000,-300.34368571,0.00036367,2]
[422473248,1778973046000,-300.0,0.00036367,2]
[422473249,1778973046000,-301.8794073,0.00036367,2]
[422473250,1778973046000,-300.0,0.00036367,2]
[422473278,1778973046000,-300.0,0.00036367,2]
[422473253,1778973046000,-300.20522211,0.00036367,2]
[422473251,1778973046000,-300.0,0.00036367,2]
[422473254,1778973046000,-300.0,0.00036367,2]
[422473247,1778973046000,-726.26438584,0.00036367,2]
[422473280,1778973046000,-300.0,0.00036367,2]
[422473262,1778973046000,-344.08088588,0.00036367,2]
[422473281,1778973046000,-577.38521552,0.00036367,2]
[422473309,1778973046000,-300.0,0.00036367,2]
[422473306,1778973046000,-300.0,0.00036367,2]
[422473308,1778973046000,-300.0,0.00036367,2]
[422473311,1778973046000,-300.0,0.00036367,2]
[422473310,1778973046000,-300.0,0.00036367,2]
[422473312,1778973046000,-300.0,0.00036367,2]
[422473313,1778973046000,-469.60141574,0.00036367,2]
[422473315,1778973046000,-492.84022017,0.00036367,2]
[422473314,1778973046000,-300.0,0.00036367,2]
[422473307,1778973046000,-300.0,0.00036367,2]
[422473317,1778973046000,-379.15418116,0.00036367,2]
[422473319,1778973046000,-300.0,0.00036367,2]
[422473316,1778973046000,-300.0,0.00036367,2]
[422473320,1778973046000,-604.63991303,0.00036367,2]
[422473321,1778973046000,-300.0,0.00036367,2]
[422473323,1778973046000,-300.0,0.00036367,2]
[422473322,1778973046000,-300.0,0.00036367,2]
[422473324,1778973046000,-527.89629163,0.00036367,2]
[422473325,1778973046000,-1067.23644452,0.00036367,2]
[422473282,1778973046000,-300.0,0.00036367,2]
[422473318,1778973046000,-300.0,0.00036367,2]
[422473303,1778973046000,-300.0,0.00036367,2]
[422473270,1778973046000,-864.71533708,0.00036367,2]
[422473304,1778973046000,-300.0,0.00036367,2]
[422473305,1778973046000,-300.0,0.00036367,2]
[422473285,1778973046000,-300.0,0.00036367,2]
[422473284,1778973046000,-300.0,0.00036367,2]
[422473287,1778973046000,-300.0,0.00036367,2]
[422473283,1778973046000,-452.04263183,0.00036367,2]
[422473288,1778973046000,-300.0,0.00036367,2]
[422473289,1778973046000,-300.0,0.00036367,2]
[422473292,1778973046000,-300.0,0.00036367,2]
[422473291,1778973046000,-484.23291958,0.00036367,2]
[422473290,1778973046000,-309.92123961,0.00036367,2]
[422473286,1778973046000,-300.0,0.00036367,2]
[422473295,1778973046000,-1127.79186826,0.00036367,2]
[422473296,1778973046000,-300.0,0.00036367,2]
[422473297,1778973046000,-300.0,0.00036367,2]
[422473298,1778973046000,-300.0,0.00036367,2]
[422473294,1778973046000,-551.15031253,0.00036367,2]
[422473299,1778973046000,-300.0,0.00036367,2]
[422473302,1778973046000,-300.0,0.00036367,2]
[422473300,1778973046000,-1095.07136273,0.00036367,2]
[422473301,1778973046000,-300.0,0.00036367,2]
[422473293,1778973046000,-300.0,0.00036367,2]
[422473326,1778973047000,-300.0,0.00036367,2]
[422473339,1778973047000,-200.0,0.0003669,30]
[422473337,1778973047000,-162.8,0.0003669,30]
[422473346,1778973047000,-158.0,0.0003669,30]
[422473341,1778973047000,-308.0,0.0003669,30]
[422473344,1778973047000,-150.0,0.0003669,30]
[422473343,1778973047000,-150.0,0.0003669,30]
[422473342,1778973047000,-273.0,0.0003669,30]
[422473336,1778973047000,-8085.63612352,0.000365,10]
[422473331,1778973047000,-300.0,0.00036367,2]
[422473340,1778973047000,-200.0,0.0003669,30]
[422473334,1778973047000,-300.0,0.00036367,2]
[422473335,1778973047000,-300.0,0.00036367,2]
[422473332,1778973047000,-344.08088588,0.00036367,2]
[422473333,1778973047000,-527.04605611,0.00036367,2]
[422473330,1778973047000,-300.0,0.00036367,2]
[422473328,1778973047000,-949.2762563,0.00036367,2]
[422473329,1778973047000,-1912.98732614,0.00036367,2]
[422473351,1778973047000,-150.0,0.0003705,2]
[422473338,1778973047000,-346.0,0.0003669,30]
[422473347,1778973047000,-150.0,0.0003705,2]
[422473359,1778973047000,202.63,0.00028661,7]
[422473350,1778973047000,-150.0,0.0003705,2]
[422473327,1778973047000,-300.0,0.00036367,2]
[422473371,1778973047000,-1651.64,0.00028788,30]
[422473369,1778973047000,-1651.64,0.00028756,7]
[422473367,1778973047000,-92.04574877,0.00028756,7]
[422473368,1778973047000,-110.58425123,0.00028756,7]
[422473366,1778973047000,-1651.64,0.00028725,2]
[422473363,1778973047000,-417.16,0.00028661,7]
[422473365,1778973047000,-202.63,0.00028725,2]
[422473364,1778973047000,-1651.64,0.00028693,30]
[422473345,1778973047000,-150.0,0.0003669,30]
[422473362,1778973047000,1234.48,0.00028661,7]
[422473358,1778973047000,1651.64,0.0002863,2]
[422473357,1778973047000,202.63,0.0002863,2]
[422473356,1778973047000,502.0,0.00028459,3]
[422473355,1778973047000,502.0,0.00027798,2]
[422473354,1778973047000,502.0,0.00027137,2]
[422473353,1778973047000,-42960.47385243,0.000371,2]
[422473348,1778973047000,-150.0,0.0003705,2]
[422473352,1778973047000,-172.0,0.0003705,2]
[422473349,1778973047000,-150.0,0.0003705,2]
[422473361,1778973047000,202.63,0.00028693,30]
[422473370,1778973047000,-202.63,0.00028788,30]
[422473373,1778973048000,-502.0,0.00029119,4]
[422473374,1778973048000,-366.81082448,0.00029477,2]
[422473372,1778973048000,-202.63,0.0002882,2]
[422473375,1778973065000,166.88945014,0.00027124,120]
[422473376,1778973066000,197.0,0.0002,2]
[422473377,1778973067000,197.0,0.00021,2]
[422473379,1778973089000,445.94219726,0.00010699,2]
[422473378,1778973089000,507.31607428,0.00010699,2]
[422473380,1778973106000,293.7226858,0.00014806,2]
[422473381,1778973113000,158.0,0.0002,2]
[422473382,1778973115000,158.0,0.00021,2]
[422473383,1778973177000,500.0,0.00010699,2]
[422473384,1778973177000,500.0,0.00010699,2]
[422473385,1778973177000,228.3153983,0.00010699,2]
[422473387,1778973177000,500.0,0.00010699,2]
[422473388,1778973177000,500.0,0.00010699,2]
[422473389,1778973177000,500.0,0.00010699,2]
[422473386,1778973177000,500.0,0.00010699,2]
[422473390,1778973191000,184.71091936,0.00010699,2]
[422473393,1778973197000,436.79166081,0.00017808,2]
[422473391,1778973197000,500.0,0.00017808,2]
[422473392,1778973197000,500.0,0.00017808,2]
[422473394,1778973214000,435.83712959,0.00010699,2]
[422473395,1778973267000,210.0,0.0002,2]
[422473396,1778973268000,210.0,0.00021,2]
[422473397,1778973278000,150.0,0.000209,2]
[422473399,1778973287000,2000.0,0.00029993,120]
[422473403,1778973782000,177.32970976,0.0002,2]
[422473402,1778973782000,1372.67029024,0.0002,2]
[422473405,1778974220000,193.0,0.0002,2]
[422473406,1778974221000,193.0,0.00021,2]
[422473462,1778974238000,-704.2856,0.000234,2]
[422473448,1778974238000,-221.5444,0.00021643,2]
[422473458,1778974238000,-193.0,0.00023,2]
[422473457,1778974238000,-210.0,0.00023,2]
[422473456,1778974238000,-158.0,0.00023,2]
[422473453,1778974238000,-210.0,0.00022,2]
[422473451,1778974238000,-169.17,0.00021743,2]
[422473460,1778974238000,-299.99,0.000234,7]
[422473450,1778974238000,-169.17,0.00021743,2]
[422473454,1778974238000,-108.80785841,0.00022,2]
[422473446,1778974238000,-793.68,0.00021273,2]
[422473447,1778974238000,-150.0,0.00021492,2]
[422473449,1778974238000,-169.17,0.00021743,2]
[422473459,1778974238000,-250.0,0.000234,2]
[422473452,1778974238000,-158.0,0.00022,2]
[422473455,1778974238000,-84.19214159,0.00022,2]
[422473473,1778974238000,-169.07072079,0.00023808,2]
[422473461,1778974238000,-150.99,0.000234,2]
[422473478,1778974238000,-2199.28289948,0.0002404,2]
[422473477,1778974238000,-193.0,0.00024,2]
[422473476,1778974238000,-210.0,0.00024,2]
[422473466,1778974238000,-251.82398887,0.00023808,2]
[422473472,1778974238000,-96.64183021,0.00023808,2]
[422473474,1778974238000,-80.92927921,0.00023808,2]
[422473468,1778974238000,-1948.98388449,0.00023808,2]
[422473471,1778974238000,-153.35816979,0.00023808,2]
[422473475,1778974238000,-168.0,0.00024,2]
[422473470,1778974238000,-195.77924987,0.00023808,2]
[422473469,1778974238000,-262.46911855,0.00023808,2]
[422473465,1778974238000,-300.0,0.00023807,2]
[422473463,1778974238000,-175.6544,0.000234,2]
[422473467,1778974238000,-299.19212664,0.00023808,2]
[422473464,1778974238000,-300.0,0.00023807,2]
[422473494,1778974240000,-215.03962261,0.000248,2]
[422473500,1778974240000,-201.0,0.00025,2]
[422473498,1778974240000,-183.63,0.00024946,7]
[422473493,1778974240000,-160.0,0.000248,2]
[422473496,1778974240000,-164.89,0.00024815,2]
[422473502,1778974240000,-8943.78386462,0.00025128,2]
[422473501,1778974240000,-3777.6089203,0.00025128,2]
[422473503,1778974240000,-9077.54866152,0.00025128,2]
[422473504,1778974240000,-8193.15050744,0.00025128,2]
[422473497,1778974240000,-183.59,0.00024946,7]
[422473495,1778974240000,-208.44072055,0.000248,2]
[422473510,1778974240000,-151.0,0.0002523,2]
[422473489,1778974240000,-200.0,0.00024166,2]
[422473492,1778974240000,-183.63,0.00024658,2]
[422473490,1778974240000,-1000.0,0.00024658,2]
[422473491,1778974240000,-183.59,0.00024658,2]
[422473488,1778974240000,-296.44,0.00024076,2]
[422473487,1778974240000,-150.0,0.00024069,2]
[422473484,1778974240000,-467.2,0.00024053,2]
[422473485,1778974240000,-5541.82046873,0.00024061,2]
[422473486,1778974240000,-1615.35953127,0.00024061,2]
[422473483,1778974240000,-2800.71710052,0.0002404,2]
[422473506,1778974240000,-151.0,0.0002523,2]
[422473499,1778974240000,-224.0,0.00025,2]
[422473505,1778974240000,-172.96,0.00025228,2]
[422473519,1778974240000,-151.0,0.0002523,2]
[422473513,1778974240000,-151.0,0.0002523,2]
[422473509,1778974240000,-151.0,0.0002523,2]
[422473528,1778974240000,-183.59,0.00025234,30]
[422473530,1778974240000,-200.0,0.0002528,2]
[422473529,1778974240000,-183.63,0.00025234,30]
[422473531,1778974240000,-1877.67502266,0.00025445,2]
[422473526,1778974240000,-2080.17592889,0.0002523,2]
[422473527,1778974240000,-150.0,0.00025233,2]
[422473518,1778974240000,-151.0,0.0002523,2]
[422473524,1778974240000,-151.0,0.0002523,2]
[422473520,1778974240000,-151.0,0.0002523,2]
[422473525,1778974240000,-151.0,0.0002523,2]
[422473532,1778974240000,-1756.91087221,0.00025445,2]
[422473522,1778974240000,-151.0,0.0002523,2]
[422473521,1778974240000,-151.0,0.0002523,2]
[422473514,1778974240000,-151.0,0.0002523,2]
[422473507,1778974240000,-151.0,0.0002523,2]
[422473508,1778974240000,-151.0,0.0002523,2]
[422473511,1778974240000,-151.0,0.0002523,2]
[422473515,1778974240000,-151.0,0.0002523,2]
[422473517,1778974240000,-151.0,0.0002523,2]
[422473516,1778974240000,-151.0,0.0002523,2]
[422473523,1778974240000,-151.0,0.0002523,2]
[422473512,1778974240000,-151.0,0.0002523,2]
[422473559,1778974241000,-561.47046344,0.0002571,2]
[422473565,1778974241000,-561.47046344,0.0002571,2]
[422473558,1778974241000,-561.47046344,0.0002571,2]
[422473561,1778974241000,-561.47046344,0.0002571,2]
[422473562,1778974241000,-561.47046344,0.0002571,2]
[422473564,1778974241000,-561.47046344,0.0002571,2]
[422473569,1778974241000,-561.47046344,0.0002571,2]
[422473568,1778974241000,-561.47046344,0.0002571,2]
[422473570,1778974241000,-561.47046344,0.0002571,2]
[422473571,1778974241000,-561.47046344,0.0002571,2]
[422473563,1778974241000,-561.47046344,0.0002571,2]
[422473574,1778974241000,-561.47046344,0.0002571,2]
[422473567,1778974241000,-561.47046344,0.0002571,2]
[422473573,1778974241000,-561.47046344,0.0002571,2]
[422473572,1778974241000,-561.47046344,0.0002571,2]
[422473575,1778974241000,-561.47046344,0.0002571,2]
[422473578,1778974241000,-561.47046344,0.0002571,2]
[422473579,1778974241000,-561.47046344,0.0002571,2]
[422473576,1778974241000,-561.47046344,0.0002571,2]
[422473577,1778974241000,-561.47046344,0.0002571,2]
[422473580,1778974241000,-561.47046344,0.0002571,2]
[422473557,1778974241000,-561.47046344,0.0002571,2]
[422473566,1778974241000,-561.47046344,0.0002571,2]
[422473554,1778974241000,-561.47046344,0.0002571,2]
[422473581,1778974241000,-561.47046344,0.0002571,2]
[422473553,1778974241000,-561.47046344,0.0002571,2]
[422473539,1778974241000,-2997.5508,0.0002561,2]
[422473540,1778974241000,-4168.5776,0.0002561,2]
[422473535,1778974241000,-183.78,0.00025523,2]
[422473536,1778974241000,-183.59,0.00025523,2]
[422473534,1778974241000,-200.0,0.000255,9]
[422473533,1778974241000,-1590.92179969,0.00025445,2]
[422473538,1778974241000,-400.0,0.000256,9]
[422473537,1778974241000,-183.63,0.00025523,2]
[422473541,1778974241000,-20645.76171934,0.0002561,2]
[422473543,1778974241000,-2500.0,0.00025611,2]
[422473555,1778974241000,-561.47046344,0.0002571,2]
[422473545,1778974241000,-198.92978342,0.00025678,2]
[422473544,1778974241000,-5000.0,0.00025611,2]
[422473546,1778974241000,-1589.56560029,0.00025686,2]
[422473549,1778974241000,-159.64351787,0.0002571,2]
[422473547,1778974241000,-600.0,0.000257,9]
[422473548,1778974241000,-197.87640164,0.00025701,2]
[422473550,1778974241000,-561.47046344,0.0002571,2]
[422473551,1778974241000,-561.47046344,0.0002571,2]
[422473560,1778974241000,-561.47046344,0.0002571,2]
[422473552,1778974241000,-561.47046344,0.0002571,2]
[422473556,1778974241000,-561.47046344,0.0002571,2]
[422473542,1778974241000,-12914.03438066,0.0002561,2]
[422473582,1778974241000,-561.47046344,0.0002571,2]
[422473618,1778974241000,-554.22568328,0.0002571,2]
[422473585,1778974241000,-561.47046344,0.0002571,2]
[422473617,1778974241000,-554.22568328,0.0002571,2]
[422473612,1778974241000,-554.22568328,0.0002571,2]
[422473613,1778974241000,-554.22568328,0.0002571,2]
[422473616,1778974241000,-554.22568328,0.0002571,2]
[422473634,1778974241000,-554.22568328,0.0002571,2]
[422473615,1778974241000,-554.22568328,0.0002571,2]
[422473614,1778974241000,-554.22568328,0.0002571,2]
[422473620,1778974241000,-554.22568328,0.0002571,2]
[422473630,1778974241000,-554.22568328,0.0002571,2]
[422473619,1778974241000,-554.22568328,0.0002571,2]
[422473608,1778974241000,-554.22568328,0.0002571,2]
[422473631,1778974241000,-554.22568328,0.0002571,2]
[422473623,1778974241000,-554.22568328,0.0002571,2]
[422473622,1778974241000,-554.22568328,0.0002571,2]
[422473625,1778974241000,-554.22568328,0.0002571,2]
[422473628,1778974241000,-554.22568328,0.0002571,2]
[422473627,1778974241000,-554.22568328,0.0002571,2]
[422473624,1778974241000,-554.22568328,0.0002571,2]
[422473629,1778974241000,-554.22568328,0.0002571,2]
[422473626,1778974241000,-554.22568328,0.0002571,2]
[422473632,1778974241000,-554.22568328,0.0002571,2]
[422473583,1778974241000,-561.47046344,0.0002571,2]
[422473621,1778974241000,-554.22568328,0.0002571,2]
[422473611,1778974241000,-554.22568328,0.0002571,2]
[422473633,1778974241000,-554.22568328,0.0002571,2]
[422473607,1778974241000,-554.22568328,0.0002571,2]
[422473588,1778974241000,-561.47046344,0.0002571,2]
[422473586,1778974241000,-561.47046344,0.0002571,2]
[422473587,1778974241000,-561.47046344,0.0002571,2]
[422473594,1778974241000,-561.47046344,0.0002571,2]
[422473591,1778974241000,-561.47046344,0.0002571,2]
[422473592,1778974241000,-561.47046344,0.0002571,2]
[422473589,1778974241000,-561.47046344,0.0002571,2]
[422473584,1778974241000,-561.47046344,0.0002571,2]
[422473590,1778974241000,-561.47046344,0.0002571,2]
[422473596,1778974241000,-561.47046344,0.0002571,2]
[422473595,1778974241000,-561.47046344,0.0002571,2]
[422473593,1778974241000,-561.47046344,0.0002571,2]
[422473598,1778974241000,-561.47046344,0.0002571,2]
[422473606,1778974241000,-554.22568328,0.0002571,2]
[422473602,1778974241000,-561.47046344,0.0002571,2]
[422473605,1778974241000,-561.47046344,0.0002571,2]
[422473604,1778974241000,-561.47046344,0.0002571,2]
[422473603,1778974241000,-561.47046344,0.0002571,2]
[422473610,1778974241000,-554.22568328,0.0002571,2]
[422473600,1778974241000,-561.47046344,0.0002571,2]
[422473597,1778974241000,-561.47046344,0.0002571,2]
[422473599,1778974241000,-561.47046344,0.0002571,2]
[422473601,1778974241000,-561.47046344,0.0002571,2]
[422473609,1778974241000,-554.22568328,0.0002571,2]
[422473638,1778974242000,-282957.89943273,0.00025711,2]
[422473636,1778974242000,-554.22568328,0.0002571,2]
[422473637,1778974242000,-636.33319182,0.0002571,2]
[422473635,1778974242000,-554.22568328,0.0002571,2]
[422473644,1778974243000,-198.09644192,0.00025711,2]
[422473648,1778974243000,-9957.72573028,0.00025711,2]
[422473647,1778974243000,-9107.57882837,0.00025711,2]
[422473645,1778974243000,-290.0373289,0.00025711,2]
[422473646,1778974243000,-1455.80317892,0.00025711,2]
[422473658,1778974246000,-4651.15052465,0.00025711,2]
[422473660,1778974246000,-684.78,0.00025711,2]
[422473659,1778974246000,-906.56,0.00025711,2]
[422473663,1778974264000,2000.0,0.00029085,120]
[422473664,1778974423000,500.0,0.0003013,120]
[422473666,1778974541000,500.0,0.00029452,120]
[422473667,1778975073000,2000.0,0.00028712,120]
[422473669,1778975347000,1000.0,0.00030129,120]
[422473688,1778975432000,-151.0,0.00016981,2]
[422473686,1778975432000,-151.0,0.00016981,2]
[422473689,1778975432000,-500.0,0.00016981,2]
[422473690,1778975432000,-151.0,0.00016981,2]
[422473693,1778975432000,-151.0,0.00016981,2]
[422473692,1778975432000,-151.0,0.00016981,2]
[422473694,1778975432000,-151.0,0.00016981,2]
[422473687,1778975432000,-500.0,0.00016981,2]
[422473695,1778975432000,-151.0,0.00016981,2]
[422473696,1778975432000,-151.0,0.00016981,2]
[422473698,1778975432000,-230.00310061,0.00016981,2]
[422473697,1778975432000,-168.82441293,0.00016981,2]
[422473691,1778975432000,-540.21980902,0.00016981,2]
[422473683,1778975432000,-500.0,0.00016981,2]
[422473681,1778975432000,-500.0,0.00016981,2]
[422473682,1778975432000,-500.0,0.00016981,2]
[422473679,1778975432000,-150.0,0.0001698,2]
[422473684,1778975432000,-151.0,0.00016981,2]
[422473680,1778975432000,-200.0,0.00016981,2]
[422473677,1778975432000,-1200.0,0.00015637,2]
[422473678,1778975432000,-300.0,0.00015637,2]
[422473673,1778975432000,-184.64,0.00013158,2]
[422473675,1778975432000,-2500.0,0.00015048,2]
[422473676,1778975432000,-161.48105996,0.00015538,2]
[422473674,1778975432000,-310.77208677,0.00014269,2]
[422473672,1778975432000,-65.36,0.00013158,2]
[422473670,1778975432000,-169.14,0.00011962,2]
[422473699,1778975432000,-151.0,0.00016981,2]
[422473685,1778975432000,-500.0,0.00016981,2]
[422473701,1778975432000,-151.0,0.00016981,2]
[422473671,1778975432000,-250.0,0.0001256,2]
[422473705,1778975432000,-500.0,0.00016981,2]